[Event "23rd ETCC Women 2021"]
[Site "Catez"]
[Date "2021.11.19"]
[Round "7.7"]
[White "Melia, Salome"]
[Black "Gaponenko, Inna"]
[Result "1/2-1/2"]
[ECO "B36"]
[WhiteElo "2371"]
[BlackElo "2339"]
[Annotator "NA"]
[PlyCount "61"]
[EventDate "2021.11.08"]
[EventType "team-tourn"]
[EventCountry "SLO"]
[SourceTitle "playchess.com"]
[Source "ChessBase"]
[SourceQuality "1"]
[WhiteTeam "Georgia"]
[BlackTeam "Ukraine"]
[WhiteTeamCountry "GEO"]
[BlackTeamCountry "UKR"]
[TimeControl "40/5400+30:1800+30"]

1. e4 {[%emt 0:00:04]} c5 {[%emt 0:00:09]} 2. Nf3 {[%emt 0:00:14]} Nc6 {
[%emt 0:00:14]} 3. d4 {[%emt 0:00:55]} cxd4 {[%emt 0:04:41]} 4. Nxd4 {[%emt 0:
01:41]} g6 {[%emt 0:00:04]} 5. c4 {[%emt 0:01:30]} Nf6 {[%emt 0:09:46]} 6. Nc3
{[%emt 0:00:25]} d6 {[%emt 0:00:09]} 7. Be2 {[%emt 0:02:30]} Nxd4 {[%emt 0:00:
17]} 8. Qxd4 {[%emt 0:00:16]} Bg7 {[%emt 0:00:02]} 9. Be3 {[%emt 0:01:12]} O-O
{[%emt 0:00:10]} 10. Qd2 {[%emt 0:00:12]} Be6 {[%emt 0:12:27]} 11. Rc1 {
[%emt 0:05:12]} a5 {[%emt 0:04:54]} 12. f3 {[%emt 0:01:50]} a4 {[%emt 0:03:19]}
13. Rc2 {[%emt 0:00:34]} Qa5 {[%emt 0:01:50]} 14. Nd5 {[%emt 0:00:52]} Nxd5 {
[%emt 0:04:53]} 15. cxd5 {[%emt 0:00:21]} Rfc8 {[%emt 0:01:03]} 16. Qxa5 {
[%emt 0:01:22]} Rxa5 {[%emt 0:00:08]} 17. Kd2 {[%emt 0:00:43]} Rxc2+ {[%emt 0:
01:57]} 18. Kxc2 {[%emt 0:00:07]} Bd7 {[%emt 0:00:04]} 19. Kb1 {[%emt 0:00:44]}
e6 {[%emt 0:05:42]} 20. dxe6 {[%emt 0:03:40]} fxe6 {[%emt 0:00:49]} 21. Rd1 {
[%emt 0:01:41]} Bb5 {[%emt 0:01:08]} 22. Bxb5 {[%emt 0:00:59]} Rxb5 {[%emt 0:
00:05]} 23. Bd4 {[%emt 0:00:32]} d5 {[%emt 0:01:23]} 24. Bxg7 {[%emt 0:01:56]}
Kxg7 {[%emt 0:00:05]} 25. exd5 {[%emt 0:00:15]} exd5 {[%emt 0:01:33]} 26. Rd4 {
[%emt 0:00:51]} a3 {[%emt 0:00:53]} 27. b3 {[%emt 0:00:08]} Kf6 {[%emt 0:01:43]
} 28. Kc2 {[%emt 0:04:27]} Rc5+ {[%emt 0:01:26]} 29. Kd2 {[%emt 0:00:07]} b5 {
[%emt 0:00:28]} 30. Rf4+ {[%emt 0:00:28]} Ke6 {[%emt 0:00:18]} 31. h4 {[%emt 0:
00:40]} 1/2-1/2

[Event "23rd ETCC Women 2021"]
[Site "Catez"]
[Date "2021.11.19"]
[Round "7.8"]
[White "Zhukova, Natalia"]
[Black "Gvetadze, Sofio"]
[Result "1/2-1/2"]
[ECO "D57"]
[WhiteElo "2331"]
[BlackElo "2302"]
[Annotator "NA"]
[PlyCount "62"]
[EventDate "2021.11.08"]
[EventType "team-tourn"]
[EventCountry "SLO"]
[SourceTitle "playchess.com"]
[Source "ChessBase"]
[SourceQuality "1"]
[WhiteTeam "Ukraine"]
[BlackTeam "Georgia"]
[WhiteTeamCountry "UKR"]
[BlackTeamCountry "GEO"]
[TimeControl "40/5400+30:1800+30"]

1. c4 {[%emt 0:00:04]} e6 {[%emt 0:00:14]} 2. Nc3 {[%emt 0:00:12]} d5 {[%emt 0:
00:13]} 3. d4 {[%emt 0:00:10]} Be7 {[%emt 0:00:23]} 4. Nf3 {[%emt 0:00:13]} Nf6
{[%emt 0:03:25]} 5. Bg5 {[%emt 0:00:21]} h6 {[%emt 0:00:34]} 6. Bh4 {[%emt 0:
00:22]} O-O {[%emt 0:00:40]} 7. e3 {[%emt 0:00:20]} Ne4 {[%emt 0:00:43]} 8.
Bxe7 {[%emt 0:00:19]} Qxe7 {[%emt 0:00:08]} 9. cxd5 {[%emt 0:00:56]} Nxc3 {
[%emt 0:00:18]} 10. bxc3 {[%emt 0:00:07]} exd5 {[%emt 0:00:09]} 11. Bd3 {
[%emt 0:00:25]} Be6 {[%emt 0:01:14]} 12. O-O {[%emt 0:00:26]} Nd7 {[%emt 0:00:
59]} 13. Qb3 {[%emt 0:00:46]} Rab8 {[%emt 0:02:09]} 14. a4 {[%emt 0:01:04]} c5
{[%emt 0:02:18]} 15. c4 {[%emt 0:04:53]} dxc4 {[%emt 0:04:32]} 16. Bxc4 {
[%emt 0:00:11]} Bxc4 {[%emt 0:00:59]} 17. Qxc4 {[%emt 0:00:07]} cxd4 {[%emt 0:
01:56]} 18. Nxd4 {[%emt 0:01:29]} Rfc8 {[%emt 0:04:38]} 19. Qb3 {[%emt 0:00:27]
} Nc5 {[%emt 0:00:43]} 20. Qb2 {[%emt 0:00:40]} Ne6 {[%emt 0:00:45]} 21. Nxe6 {
[%emt 0:01:49]} Qxe6 {[%emt 0:00:15]} 22. Rfc1 {[%emt 0:00:18]} b6 {[%emt 0:03:
18]} 23. h3 {[%emt 0:01:21]} Rc6 {[%emt 0:01:27]} 24. Rxc6 {[%emt 0:01:14]}
Qxc6 {[%emt 0:00:06]} 25. Qb5 {[%emt 0:00:24]} Rc8 {[%emt 0:00:39]} 26. Qxc6 {
[%emt 0:01:38]} Rxc6 {[%emt 0:00:07]} 27. Rd1 {[%emt 0:00:24]} Rc4 {[%emt 0:03:
17]} 28. a5 {[%emt 0:00:35]} bxa5 {[%emt 0:00:31]} 29. Rd8+ {[%emt 0:00:13]}
Kh7 {[%emt 0:00:05]} 30. Rd7 {[%emt 0:00:06]} Kg6 {[%emt 0:00:44]} 31. Rxa7 {
[%emt 0:00:17]} a4 {[%emt 0:00:16]} 1/2-1/2

[Event "23rd ETCC Women 2021"]
[Site "Catez"]
[Date "2021.11.19"]
[Round "7.9"]
[White "Zaksaite, Salomeja"]
[Black "Tsolakidou, Stavroula"]
[Result "0-1"]
[ECO "B51"]
[WhiteElo "2250"]
[BlackElo "2377"]
[Annotator "NA"]
[PlyCount "88"]
[EventDate "2021.11.08"]
[EventType "team-tourn"]
[EventCountry "SLO"]
[SourceTitle "playchess.com"]
[Source "ChessBase"]
[SourceQuality "1"]
[WhiteTeam "Lithuania"]
[BlackTeam "Greece"]
[WhiteTeamCountry "LTU"]
[BlackTeamCountry "GRE"]
[TimeControl "40/5400+30:1800+30"]

1. e4 {[%emt 0:00:02]} c5 {[%emt 0:00:09]} 2. Nf3 {[%emt 0:00:23]} d6 {[%emt 0:
00:15]} 3. Bb5+ {[%emt 0:00:20]} Nd7 {[%emt 0:00:16]} 4. d4 {[%emt 0:00:07]}
cxd4 {[%emt 0:01:59]} 5. Qxd4 {[%emt 0:02:01]} a6 {[%emt 0:01:06]} 6. Bxd7+ {
[%emt 0:00:38]} Bxd7 {[%emt 0:00:05]} 7. Nc3 {[%emt 0:00:10]} e5 {[%emt 0:02:
15]} 8. Qd3 {[%emt 0:00:08]} Rc8 {[%emt 0:00:52]} 9. a4 {[%emt 0:00:54]} Qc7 {
[%emt 0:02:38]} 10. O-O {[%emt 0:00:43]} Be6 {[%emt 0:12:39]} 11. Rd1 {[%emt 0:
04:47]} h6 {[%emt 0:05:17]} 12. Ne1 {[%emt 0:03:04]} Nf6 {[%emt 0:04:59]} 13.
Nd5 {[%emt 0:01:54]} Nxd5 {[%emt 0:02:14]} 14. exd5 {[%emt 0:02:34]} Bg4 {
[%emt 0:00:15]} 15. f3 {[%emt 0:01:47]} Bh5 {[%emt 0:00:53]} 16. Be3 {[%emt 0:
06:46]} Be7 {[%emt 0:01:17]} 17. c4 {[%emt 0:01:19]} Qxc4 {[%emt 0:18:31]} 18.
Qd2 {[%emt 0:32:08]} Qc7 {[%emt 0:10:50]} 19. Rac1 {[%emt 0:03:56]} Qd7 {
[%emt 0:01:28]} 20. Rxc8+ {[%emt 0:01:32]} Qxc8 {[%emt 0:00:04]} 21. Rc1 {
[%emt 0:01:46]} Qd7 {[%emt 0:00:28]} 22. Qc3 {[%emt 0:04:23]} Bd8 {[%emt 0:06:
40]} 23. f4 {[%emt 0:03:48]} f6 {[%emt 0:00:10]} 24. b3 {[%emt 0:09:42]} O-O {
[%emt 0:00:24]} 25. Nc2 {[%emt 0:02:20]} Qf5 {[%emt 0:03:31]} 26. fxe5 {
[%emt 0:00:57]} fxe5 {[%emt 0:00:38]} 27. Qc4 {[%emt 0:09:23]} Bg6 {[%emt 0:02:
07]} 28. h3 {[%emt 0:00:48]} Ba5 {[%emt 0:07:03]} 29. b4 {[%emt 0:00:11]} Rc8 {
[%emt 0:02:13]} 30. Qe2 {[%emt 0:01:21]} Rxc2 {[%emt 0:04:19]} 31. Rxc2 {
[%emt 0:00:09]} Qxc2 {[%emt 0:00:04]} 32. Qxc2 {[%emt 0:00:14]} Bxc2 {[%emt 0:
00:04]} 33. bxa5 {[%emt 0:00:04]} Bxa4 {[%emt 0:00:06]} 34. g4 {[%emt 0:06:03]}
Bb3 {[%emt 0:00:54]} 35. g5 {[%emt 0:00:04]} h5 {[%emt 0:01:21]} 36. Kf2 {
[%emt 0:00:51]} Bxd5 {[%emt 0:00:08]} 37. h4 {[%emt 0:00:29]} g6 {[%emt 0:00:
03]} 38. Bb6 {[%emt 0:00:07]} Kf7 {[%emt 0:00:04]} 39. Ke3 {[%emt 0:00:37]} Ke6
{[%emt 0:00:05]} 40. Kd3 {[%emt 0:00:47]} Bc6 {[%emt 0:00:18]} 41. Bf2 {
[%emt 0:10:57]} d5 {[%emt 0:00:11]} 42. Kc3 {[%emt 0:00:13]} d4+ {[%emt 0:00:
57]} 43. Kc4 {[%emt 0:00:05]} Kd6 {[%emt 0:00:04]} 44. Kb4 {[%emt 0:03:36]} Kd5
{[%emt 0:00:04]} 0-1

[Event "23rd ETCC Women 2021"]
[Site "Catez"]
[Date "2021.11.19"]
[Round "7.10"]
[White "Avramidou, Anastasia"]
[Black "Baginskaite, Kamile"]
[Result "1-0"]
[ECO "D38"]
[WhiteElo "2217"]
[BlackElo "2100"]
[Annotator "NA"]
[PlyCount "95"]
[EventDate "2021.11.08"]
[EventType "team-tourn"]
[EventCountry "SLO"]
[SourceTitle "playchess.com"]
[Source "ChessBase"]
[SourceQuality "1"]
[WhiteTeam "Greece"]
[BlackTeam "Lithuania"]
[WhiteTeamCountry "GRE"]
[BlackTeamCountry "LTU"]
[TimeControl "40/5400+30:1800+30"]

1. d4 {[%emt 0:00:06]} Nf6 {[%emt 0:00:09]} 2. c4 {[%emt 0:00:10]} e6 {[%emt 0:
00:10]} 3. Nf3 {[%emt 0:00:07]} d5 {[%emt 0:00:47]} 4. Nc3 {[%emt 0:00:10]} Bb4
{[%emt 0:00:12]} 5. Qa4+ {[%emt 0:00:08]} Nc6 {[%emt 0:00:28]} 6. a3 {[%emt 0:
00:05]} Bxc3+ {[%emt 0:14:20]} 7. bxc3 {[%emt 0:00:10]} Bd7 {[%emt 0:00:03]} 8.
cxd5 {[%emt 0:00:21]} exd5 {[%emt 0:03:07]} 9. Qc2 {[%emt 0:00:09]} Na5 {
[%emt 0:21:59]} 10. Bf4 {[%emt 0:07:44]} Bb5 {[%emt 0:01:18]} 11. Qb2 {[%emt 0:
22:25]} Ba6 {[%emt 0:14:03]} 12. Qb4 {[%emt 0:11:09]} Nc6 {[%emt 0:06:31]} 13.
Qa4 {[%emt 0:00:34]} Ne4 {[%emt 0:00:43]} 14. Ne5 {[%emt 0:16:25]} Qf6 {
[%emt 0:11:09]} 15. e3 {[%emt 0:00:05]} Bxf1 {[%emt 0:00:04]} 16. Rxf1 {
[%emt 0:00:13]} O-O {[%emt 0:01:14]} 17. f3 {[%emt 0:14:11]} Nxc3 {[%emt 0:05:
34]} 18. Qb3 {[%emt 0:02:41]} Nxd4 {[%emt 0:04:48]} 19. exd4 {[%emt 0:06:01]}
Qxf4 {[%emt 0:00:20]} 20. Qxc3 {[%emt 0:00:04]} c5 {[%emt 0:03:25]} 21. Qd2 {
[%emt 0:00:43]} Qxh2 {[%emt 0:02:42]} 22. Kf2 {[%emt 0:02:16]} Qh4+ {[%emt 0:
03:04]} 23. Kg1 {[%emt 0:00:04]} cxd4 {[%emt 0:01:34]} 24. f4 {[%emt 0:02:44]}
Rac8 {[%emt 0:02:37]} 25. Qxd4 {[%emt 0:00:19]} b6 {[%emt 0:01:48]} 26. Qxd5 {
[%emt 0:02:40]} Rc7 {[%emt 0:00:01]} 27. Rad1 {[%emt 0:02:13]} Qe7 {[%emt 0:00:
50]} 28. Rf3 {[%emt 0:02:08]} Re8 {[%emt 0:00:18]} 29. Re3 {[%emt 0:02:52]} h6
{[%emt 0:00:32]} 30. Ng4 {[%emt 0:02:19]} Qf8 {[%emt 0:00:27]} 31. Rg3 {
[%emt 0:01:09]} Kh8 {[%emt 0:00:14]} 32. Qd4 {[%emt 0:01:18]} Qc5 {[%emt 0:00:
59]} 33. Qxc5 {[%emt 0:00:06]} bxc5 {[%emt 0:00:30]} 34. Rc3 {[%emt 0:00:20]}
Re4 {[%emt 0:00:18]} 35. g3 {[%emt 0:00:16]} Ra4 {[%emt 0:00:54]} 36. Ne5 {
[%emt 0:00:47]} g5 {[%emt 0:00:22]} 37. fxg5 {[%emt 0:01:07]} hxg5 {[%emt 0:00:
05]} 38. Rd7 {[%emt 0:00:49]} Rxd7 {[%emt 0:00:49]} 39. Nxd7 {[%emt 0:00:04]}
f5 {[%emt 0:00:53]} 40. Nxc5 {[%emt 0:00:42]} Rg4 {[%emt 0:00:19]} 41. Kg2 {
[%emt 0:32:11]} f4 {[%emt 0:16:04]} 42. Kh3 {[%emt 0:00:00]} Rxg3+ {[%emt 0:00:
08]} 43. Rxg3 {[%emt 0:00:00]} fxg3 {[%emt 0:00:04]} 44. Kxg3 {[%emt 0:00:00]}
Kg7 {[%emt 0:00:35]} 45. Ne4 {[%emt 0:00:00]} Kf7 {[%emt 0:05:45]} 46. Nxg5+ {
[%emt 0:00:00]} Ke7 {[%emt 0:00:05]} 47. Kf4 {[%emt 0:00:00]} Kd6 {[%emt 0:00:
04]} 48. Ke4 {[%emt 0:00:00]} 1-0

[Event "23rd ETCC Women 2021"]
[Site "Catez"]
[Date "2021.11.19"]
[Round "7.12"]
[White "Christodoulaki, Antonia"]
[Black "Sibajeva, Marija"]
[Result "1/2-1/2"]
[ECO "B01"]
[WhiteElo "2075"]
[BlackElo "1946"]
[Annotator "NA"]
[PlyCount "98"]
[EventDate "2021.11.08"]
[EventType "team-tourn"]
[EventCountry "SLO"]
[SourceTitle "playchess.com"]
[Source "ChessBase"]
[SourceQuality "1"]
[BlackTeam "Lithuania"]
[BlackTeamCountry "LTU"]
[TimeControl "40/5400+30:1800+30"]

1. e4 {[%emt 0:00:02]} d5 {[%emt 0:00:03]} 2. exd5 {[%emt 0:00:04]} Qxd5 {
[%emt 0:00:03]} 3. Nc3 {[%emt 0:00:08]} Qa5 {[%emt 0:00:03]} 4. d4 {[%emt 0:00:
05]} Nf6 {[%emt 0:00:06]} 5. Nf3 {[%emt 0:00:08]} Bf5 {[%emt 0:00:06]} 6. Bc4 {
[%emt 0:00:10]} e6 {[%emt 0:00:05]} 7. Bd2 {[%emt 0:00:04]} Bb4 {[%emt 0:00:11]
} 8. a3 {[%emt 0:00:05]} Bxc3 {[%emt 0:00:04]} 9. Bxc3 {[%emt 0:00:04]} Qb6 {
[%emt 0:00:05]} 10. O-O {[%emt 0:00:06]} O-O {[%emt 0:01:41]} 11. b3 {[%emt 0:
01:48]} Nc6 {[%emt 0:00:30]} 12. a4 {[%emt 0:12:25]} a5 {[%emt 0:02:53]} 13.
Bb2 {[%emt 0:00:30]} Rfd8 {[%emt 0:03:54]} 14. Qe2 {[%emt 0:32:03]} Nb4 {
[%emt 0:03:38]} 15. Rac1 {[%emt 0:02:34]} Nfd5 {[%emt 0:04:12]} 16. Qd2 {
[%emt 0:18:18]} h6 {[%emt 0:09:40]} 17. c3 {[%emt 0:01:09]} Na6 {[%emt 0:00:26]
} 18. Ba3 {[%emt 0:07:40]} c5 {[%emt 0:05:25]} 19. Rfe1 {[%emt 0:06:08]} cxd4 {
[%emt 0:02:15]} 20. Nxd4 {[%emt 0:00:40]} Nxc3 {[%emt 0:11:41]} 21. Qxc3 {
[%emt 0:00:02]} Qxd4 {[%emt 0:00:07]} 22. Qxa5 {[%emt 0:01:32]} Qd2 {[%emt 0:
01:11]} 23. Qe5 {[%emt 0:05:44]} Nb4 {[%emt 0:05:05]} 24. Bb2 {[%emt 0:05:26]}
Qg5 {[%emt 0:00:48]} 25. Re3 {[%emt 0:00:34]} Nd3 {[%emt 0:08:32]} 26. Bxd3 {
[%emt 0:00:07]} Rxd3 {[%emt 0:00:13]} 27. Rce1 {[%emt 0:04:40]} Rad8 {[%emt 0:
02:48]} 28. Rg3 {[%emt 0:01:25]} Rxg3 {[%emt 0:04:17]} 29. hxg3 {[%emt 0:00:01]
} f6 {[%emt 0:00:01]} 30. Qc3 {[%emt 0:00:59]} Rd3 {[%emt 0:04:32]} 31. Qc8+ {
[%emt 0:00:38]} Kh7 {[%emt 0:00:06]} 32. Bc3 {[%emt 0:00:35]} e5 {[%emt 0:02:
21]} 33. Qc4 {[%emt 0:00:17]} Qg4 {[%emt 0:00:16]} 34. Qxg4 {[%emt 0:00:43]}
Bxg4 {[%emt 0:00:02]} 35. Rc1 {[%emt 0:00:24]} Rd1+ {[%emt 0:02:52]} 36. Rxd1 {
[%emt 0:00:02]} Bxd1 {[%emt 0:00:01]} 37. a5 {[%emt 0:00:42]} Bxb3 {[%emt 0:00:
12]} 38. f3 {[%emt 0:00:18]} Kg6 {[%emt 0:00:58]} 39. Kf2 {[%emt 0:00:27]} h5 {
[%emt 0:01:37]} 40. Ke3 {[%emt 0:00:37]} Kf5 {[%emt 0:00:21]} 41. Bb4 {[%emt 0:
30:17]} Bd5 {[%emt 0:31:45]} 42. Be1 {[%emt 0:00:00]} g5 {[%emt 0:00:00]} 43.
Bf2 {[%emt 0:00:00]} Ke6 {[%emt 0:00:00]} 44. Be1 {[%emt 0:00:00]} f5 {[%emt 0:
00:00]} 45. Bb4 {[%emt 0:00:00]} f4+ {[%emt 0:00:00]} 46. gxf4 {[%emt 0:00:00]}
exf4+ {[%emt 0:00:00]} 47. Kf2 {[%emt 0:00:00]} g4 {[%emt 0:00:00]} 48. fxg4 {
[%emt 0:00:00]} hxg4 {[%emt 0:00:00]} 49. g3 {[%emt 0:00:00]} f3 {[%emt 0:00:
00]} 1/2-1/2

[Event "23rd ETCC Women 2021"]
[Site "Catez"]
[Date "2021.11.19"]
[Round "7.13"]
[White "Zawadzka, Jolanta"]
[Black "Paehtz, Elisabeth"]
[Result "1/2-1/2"]
[ECO "B92"]
[WhiteElo "2429"]
[BlackElo "2485"]
[Annotator "ChessBase"]
[PlyCount "103"]
[EventDate "2021.11.08"]
[EventType "team-tourn"]
[EventCountry "SLO"]
[SourceTitle "playchess.com"]
[Source "ChessBase"]
[SourceQuality "1"]
[WhiteTeam "Poland"]
[BlackTeam "Germany"]
[WhiteTeamCountry "POL"]
[BlackTeamCountry "GER"]
[TimeControl "40/5400+30:1800+30"]

1. e4 {[%emt 0:00:03]} c5 {[%emt 0:00:03]} 2. Nf3 {[%emt 0:00:05]} d6 {[%emt 0:
00:02]} 3. d4 {[%emt 0:00:04]} cxd4 {[%emt 0:00:04]} 4. Nxd4 {[%emt 0:00:05]}
Nf6 {[%emt 0:00:03]} 5. Nc3 {[%emt 0:00:06]} a6 {[%emt 0:00:03]} 6. Be3 {
[%emt 0:00:06]} Ng4 {[%emt 0:00:03]} 7. Bc1 {[%emt 0:01:24]} Nf6 {[%emt 0:00:
03]} 8. Be2 {[%emt 0:02:30]} e5 {[%emt 0:00:10]} 9. Nb3 {[%emt 0:00:03]} Be7 {
[%emt 0:00:11]} 10. O-O {[%emt 0:00:07]} O-O {[%emt 0:00:21]} 11. Qd3 {[%emt 0:
00:12]} Be6 {[%emt 0:13:45]} 12. Be3 {[%emt 0:00:42]} Nbd7 {[%emt 0:01:20]} 13.
Nd5 {[%emt 0:00:21]} Bxd5 {[%emt 0:00:21]} 14. exd5 {[%emt 0:00:06]} Re8 {
[%emt 0:02:02]} 15. a4 {[%emt 0:08:34]} Rc8 {[%emt 0:02:17]} 16. a5 {[%emt 0:
06:42]} e4 {[%emt 0:08:37]} 17. Qd2 {[%emt 0:06:34]} Ne5 {[%emt 0:00:25]} 18.
Ra4 {[%emt 0:00:35]} Qd7 {[%emt 0:07:07]} 19. Rb4 {[%emt 0:01:45]} Bd8 {
[%emt 0:00:21]} 20. Rd1 {[%emt 0:07:22]} h6 {[%emt 0:03:30]} 21. h3 {[%emt 0:
03:56]} Ng6 {[%emt 0:08:01]} 22. c4 {[%emt 0:05:57]} Ne7 {[%emt 0:04:26]} 23.
Ra1 {[%emt 0:18:24]} Nf5 {[%emt 0:03:57]} 24. Nd4 {[%emt 0:00:21]} Nxe3 {
[%emt 0:00:11]} 25. Qxe3 {[%emt 0:02:15]} Rc5 {[%emt 0:12:03]} 26. Rba4 {
[%emt 0:03:20]} Re5 {[%emt 0:00:44]} 27. b4 {[%emt 0:01:28]} Rc8 {[%emt 0:01:
41]} 28. R4a3 {[%emt 0:00:40]} h5 {[%emt 0:02:04]} 29. b5 {[%emt 0:06:42]} axb5
{[%emt 0:06:21]} 30. Nxb5 {[%emt 0:00:06]} Ne8 {[%emt 0:00:29]} 31. a6 {
[%emt 0:05:13]} bxa6 {[%emt 0:00:03]} 32. Rxa6 {[%emt 0:00:04]} Bg5 {[%emt 0:
03:45]} 33. Qa7 {[%emt 0:08:20]} Qf5 {[%emt 0:03:57]} 34. Nd4 {[%emt 0:03:28]}
Qf4 {[%emt 0:00:25]} 35. Nc6 {[%emt 0:02:43]} e3 {[%emt 0:02:06]} 36. Nxe5 {
[%emt 0:02:16]} Qxe5 {[%emt 0:01:15]} 37. R6a3 {[%emt 0:01:41]} Nf6 {[%emt 0:
03:34]} 38. fxe3 {[%emt 0:01:07]} Re8 {[%emt 0:00:04]} 39. Bf3 {[%emt 0:01:07]}
Bxe3+ {[%emt 0:00:08]} 40. Rxe3 {[%emt 0:00:08]} Qxe3+ {[%emt 0:00:03]} 41.
Qxe3 {[%emt 0:30:04]} Rxe3 {[%emt 0:30:03]} 42. Ra6 {[%emt 0:00:00]} Rc3 {
[%emt 0:00:00]} 43. Rc6 {[%emt 0:00:00]} Kf8 {[%emt 0:00:00]} 44. Kf2 {[%emt 0:
00:00]} h4 {[%emt 0:00:00]} 45. Ke2 {[%emt 0:00:00]} Ne8 {[%emt 0:00:00]} 46.
Kd2 {[%emt 0:00:00]} Ra3 {[%emt 0:00:00]} 47. Rb6 {[%emt 0:00:00]} g6 {[%emt 0:
00:00]} 48. Kc2 {[%emt 0:00:00]} Ke7 {[%emt 0:00:00]} 49. Rb7+ {[%emt 0:00:00]}
Kf8 {[%emt 0:00:00]} 50. Rb6 {[%emt 0:00:00]} Ke7 {[%emt 0:00:00]} 51. Rb7+ {
[%emt 0:00:00]} Kf8 {[%emt 0:00:00]} 52. Rb6 {[%emt 0:00:38]} 1/2-1/2

[Event "23rd ETCC Women 2021"]
[Site "Catez"]
[Date "2021.11.19"]
[Round "7.14"]
[White "Heinemann, Josefine"]
[Black "Kiolbasa, Oliwia"]
[Result "1/2-1/2"]
[ECO "C93"]
[WhiteElo "2336"]
[BlackElo "2403"]
[Annotator "NA"]
[PlyCount "82"]
[EventDate "2021.11.08"]
[EventType "team-tourn"]
[EventCountry "SLO"]
[SourceTitle "playchess.com"]
[Source "ChessBase"]
[SourceQuality "1"]
[WhiteTeam "Germany"]
[BlackTeam "Poland"]
[WhiteTeamCountry "GER"]
[BlackTeamCountry "POL"]
[TimeControl "40/5400+30:1800+30"]

1. e4 {[%emt 0:00:02]} e5 {[%emt 0:00:08]} 2. Nf3 {[%emt 0:00:06]} Nc6 {
[%emt 0:00:08]} 3. Bb5 {[%emt 0:00:06]} a6 {[%emt 0:00:08]} 4. Ba4 {[%emt 0:00:
10]} Nf6 {[%emt 0:00:15]} 5. O-O {[%emt 0:00:20]} Be7 {[%emt 0:00:20]} 6. Re1 {
[%emt 0:00:09]} b5 {[%emt 0:00:07]} 7. Bb3 {[%emt 0:00:05]} d6 {[%emt 0:00:15]}
8. c3 {[%emt 0:00:09]} O-O {[%emt 0:00:17]} 9. h3 {[%emt 0:00:16]} Bb7 {
[%emt 0:00:20]} 10. d4 {[%emt 0:00:15]} Re8 {[%emt 0:00:16]} 11. Nbd2 {[%emt 0:
00:51]} Bf8 {[%emt 0:00:29]} 12. a3 {[%emt 0:00:59]} h6 {[%emt 0:00:52]} 13.
Bc2 {[%emt 0:00:25]} Nb8 {[%emt 0:00:31]} 14. b3 {[%emt 0:02:44]} Nbd7 {
[%emt 0:00:46]} 15. Bb2 {[%emt 0:00:47]} g6 {[%emt 0:00:44]} 16. Bd3 {[%emt 0:
02:09]} Bg7 {[%emt 0:01:49]} 17. dxe5 {[%emt 0:00:40]} Nxe5 {[%emt 0:00:25]}
18. Nxe5 {[%emt 0:00:08]} dxe5 {[%emt 0:00:08]} 19. Qc2 {[%emt 0:00:36]} Qd6 {
[%emt 0:00:43]} 20. Rad1 {[%emt 0:00:55]} Rad8 {[%emt 0:00:27]} 21. Nf3 {
[%emt 0:01:38]} Qc6 {[%emt 0:01:10]} 22. Rd2 {[%emt 0:04:04]} g5 {[%emt 0:02:
50]} 23. c4 {[%emt 0:07:17]} bxc4 {[%emt 0:03:28]} 24. Qxc4 {[%emt 0:04:21]}
Qxc4 {[%emt 0:07:57]} 25. Bxc4 {[%emt 0:02:24]} Nxe4 {[%emt 0:04:49]} 26. Rxd8
{[%emt 0:02:15]} Rxd8 {[%emt 0:00:10]} 27. Bxe5 {[%emt 0:02:14]} Bxe5 {[%emt 0:
05:00]} 28. Nxe5 {[%emt 0:00:10]} Nd6 {[%emt 0:01:35]} 29. Bf1 {[%emt 0:04:10]}
Re8 {[%emt 0:02:55]} 30. Nd3 {[%emt 0:07:11]} Rxe1 {[%emt 0:00:34]} 31. Nxe1 {
[%emt 0:00:04]} a5 {[%emt 0:08:37]} 32. f3 {[%emt 0:05:33]} Bd5 {[%emt 0:03:06]
} 33. b4 {[%emt 0:00:42]} axb4 {[%emt 0:00:12]} 34. axb4 {[%emt 0:00:05]} Kf8 {
[%emt 0:01:55]} 35. Kf2 {[%emt 0:04:21]} Ke7 {[%emt 0:00:40]} 36. g3 {[%emt 0:
04:43]} Nf5 {[%emt 0:06:13]} 37. Bd3 {[%emt 0:04:27]} Nd4 {[%emt 0:00:27]} 38.
Ke3 {[%emt 0:02:32]} Nc6 {[%emt 0:01:53]} 39. Nc2 {[%emt 0:02:24]} Kd6 {
[%emt 0:02:31]} 40. f4 {[%emt 0:03:35]} f6 {[%emt 0:05:27]} 41. h4 {[%emt 0:33:
34]} Bb3 {[%emt 0:34:03]} 1/2-1/2

[Event "23rd ETCC Women 2021"]
[Site "Catez"]
[Date "2021.11.19"]
[Round "7.15"]
[White "Socko, Monika"]
[Black "Klek, Hanna Marie"]
[Result "1/2-1/2"]
[ECO "E06"]
[WhiteElo "2393"]
[BlackElo "2343"]
[Annotator "NA"]
[PlyCount "95"]
[EventDate "2021.11.08"]
[EventType "team-tourn"]
[EventCountry "SLO"]
[SourceTitle "playchess.com"]
[Source "ChessBase"]
[SourceQuality "1"]
[WhiteTeam "Poland"]
[BlackTeam "Germany"]
[WhiteTeamCountry "POL"]
[BlackTeamCountry "GER"]
[TimeControl "40/5400+30:1800+30"]

1. d4 {[%emt 0:00:03]} Nf6 {[%emt 0:00:06]} 2. c4 {[%emt 0:00:04]} e6 {[%emt 0:
00:05]} 3. Nf3 {[%emt 0:00:03]} d5 {[%emt 0:00:06]} 4. g3 {[%emt 0:00:04]} Be7
{[%emt 0:00:07]} 5. Bg2 {[%emt 0:00:24]} O-O {[%emt 0:00:07]} 6. O-O {[%emt 0:
00:09]} c6 {[%emt 0:00:06]} 7. Nbd2 {[%emt 0:00:55]} b6 {[%emt 0:00:23]} 8. Qc2
{[%emt 0:00:14]} Bb7 {[%emt 0:01:16]} 9. e4 {[%emt 0:02:20]} c5 {[%emt 0:05:07]
} 10. exd5 {[%emt 0:07:21]} exd5 {[%emt 0:00:50]} 11. dxc5 {[%emt 0:00:28]}
Bxc5 {[%emt 0:03:29]} 12. Nb3 {[%emt 0:04:12]} Nbd7 {[%emt 0:13:52]} 13. Nxc5 {
[%emt 0:09:00]} Nxc5 {[%emt 0:00:22]} 14. Be3 {[%emt 0:04:36]} dxc4 {[%emt 0:
04:35]} 15. Rfd1 {[%emt 0:08:41]} Nd3 {[%emt 0:08:58]} 16. b3 {[%emt 0:02:53]}
Qe7 {[%emt 0:13:34]} 17. Bd4 {[%emt 0:13:58]} Nb4 {[%emt 0:09:14]} 18. Qf5 {
[%emt 0:09:40]} Ne4 {[%emt 0:09:28]} 19. bxc4 {[%emt 0:10:10]} Nc2 {[%emt 0:02:
34]} 20. Rac1 {[%emt 0:00:36]} Nxd4 {[%emt 0:00:21]} 21. Rxd4 {[%emt 0:00:29]}
Rad8 {[%emt 0:03:46]} 22. Re1 {[%emt 0:04:13]} Qc5 {[%emt 0:03:03]} 23. Qxc5 {
[%emt 0:03:05]} Nxc5 {[%emt 0:00:07]} 24. Re7 {[%emt 0:00:15]} Rde8 {[%emt 0:
00:55]} 25. Rxe8 {[%emt 0:02:40]} Rxe8 {[%emt 0:00:07]} 26. h4 {[%emt 0:00:29]}
f6 {[%emt 0:00:48]} 27. Nd2 {[%emt 0:01:35]} Re1+ {[%emt 0:04:17]} 28. Kh2 {
[%emt 0:00:03]} Bxg2 {[%emt 0:00:21]} 29. Kxg2 {[%emt 0:00:03]} Ra1 {[%emt 0:
00:44]} 30. Nb3 {[%emt 0:00:47]} Rxa2 {[%emt 0:00:34]} 31. Nxc5 {[%emt 0:00:03]
} bxc5 {[%emt 0:00:06]} 32. Rd8+ {[%emt 0:00:49]} Kf7 {[%emt 0:00:06]} 33. Rc8
{[%emt 0:00:02]} Ra5 {[%emt 0:02:06]} 34. Rc7+ {[%emt 0:00:09]} Kg6 {[%emt 0:
00:19]} 35. Kf3 {[%emt 0:00:41]} h5 {[%emt 0:02:04]} 36. Ke4 {[%emt 0:00:47]}
Ra2 {[%emt 0:05:25]} 37. Ke3 {[%emt 0:02:49]} Ra3+ {[%emt 0:01:36]} 38. Ke4 {
[%emt 0:00:40]} Ra2 {[%emt 0:00:07]} 39. Ke3 {[%emt 0:03:35]} Ra3+ {[%emt 0:00:
11]} 40. Kf4 {[%emt 0:05:30]} Ra5 {[%emt 0:01:01]} 41. f3 {[%emt 0:30:38]} a6 {
[%emt 0:37:40]} 42. Ke4 {[%emt 0:00:47]} Ra1 {[%emt 0:00:00]} 43. Rxc5 {
[%emt 0:00:00]} a5 {[%emt 0:00:00]} 44. Kf4 {[%emt 0:00:00]} a4 {[%emt 0:00:00]
} 45. Ra5 {[%emt 0:00:00]} a3 {[%emt 0:00:00]} 46. c5 {[%emt 0:00:00]} a2 {
[%emt 0:00:00]} 47. c6 {[%emt 0:00:00]} Rc1 {[%emt 0:00:00]} 48. Rxa2 {[%emt 0:
00:00]} 1/2-1/2